[Event "SM-blixten 2025"]
[Site "Uppsala, Sweden"]
[Date "2025.07.03"]
[Round "11.7"]
[White "Karlsson, Tomas"]
[Black "Muntean, Victor"]
[Result "1/2-1/2"]
[TimeControl "3 min + 2 sec increment starting from move 1"]
[WhiteTitle "FM"]
[WhiteElo "2239"]
[BlackElo "2140"]

1. e4 {[%clk 00:03:03]} e5 {[%clk 00:03:04]} {[%emt 00:00:01]} 2. Nf3 {[%clk
00:03:04]} Nc6 {[%clk 00:03:05]} {[%emt 00:00:01]} 3. Bb5 {[%clk 00:03:05]} a6
{[%clk 00:03:07]} 4. Ba4 {[%clk 00:03:06]} f5 {[%clk 00:03:08]} {[%emt
00:00:01]} 5. d3 {[%clk 00:02:39]} {[%emt 00:00:28]} fxe4 {[%clk 00:03:09]}
{[%emt 00:00:01]} 6. dxe4 {[%clk 00:02:40]} {[%emt 00:00:01]} Nf6 {[%clk
00:03:10]} {[%emt 00:00:02]} 7. O-O {[%clk 00:02:37]} {[%emt 00:00:05]} d6
{[%clk 00:03:11]} {[%emt 00:00:01]} 8. Bg5 {[%clk 00:02:21]} {[%emt 00:00:18]}
Be7 {[%clk 00:03:09]} {[%emt 00:00:03]} 9. Bxf6 {[%clk 00:02:19]} {[%emt
00:00:04]} Bxf6 {[%clk 00:03:10]} {[%emt 00:00:01]} 10. Qd5 {[%clk 00:02:13]}
{[%emt 00:00:09]} Bd7 {[%clk 00:03:00]} {[%emt 00:00:12]} 11. c3 {[%clk
00:02:06]} {[%emt 00:00:08]} Qe7 {[%clk 00:02:34]} {[%emt 00:00:28]} 12. Bb3
{[%clk 00:02:06]} {[%emt 00:00:02]} O-O-O {[%clk 00:02:21]} {[%emt 00:00:15]}
13. Qf7 {[%clk 00:01:49]} {[%emt 00:00:19]} Rdf8 {[%clk 00:02:11]} {[%emt
00:00:13]} 14. Qxe7 {[%clk 00:01:48]} {[%emt 00:00:02]} Bxe7 {[%clk 00:02:11]}
{[%emt 00:00:02]} 15. Nbd2 {[%clk 00:01:48]} {[%emt 00:00:02]} g5 {[%clk
00:02:10]} {[%emt 00:00:03]} 16. Nc4 {[%clk 00:01:42]} {[%emt 00:00:08]} h5
{[%clk 00:02:04]} {[%emt 00:00:08]} 17. Ne3 {[%clk 00:01:42]} {[%emt 00:00:03]}
g4 {[%clk 00:02:01]} {[%emt 00:00:05]} 18. Nd2 {[%clk 00:01:37]} {[%emt
00:00:06]} Bg5 {[%clk 00:02:01]} {[%emt 00:00:02]} 19. Rae1 {[%clk 00:01:24]}
{[%emt 00:00:14]} Ne7 {[%clk 00:01:56]} {[%emt 00:00:09]} 20. Re2 {[%clk
00:01:09]} {[%emt 00:00:18]} Ng6 {[%clk 00:01:42]} {[%emt 00:00:16]} 21. g3
{[%clk 00:01:04]} {[%emt 00:00:06]} Rf6 {[%clk 00:01:37]} {[%emt 00:00:07]} 22.
Nd5 {[%clk 00:01:03]} {[%emt 00:00:03]} Rff8 {[%clk 00:01:36]} {[%emt
00:00:03]} 23. Nc4 {[%clk 00:00:47]} {[%emt 00:00:18]} h4 {[%clk 00:01:31]}
{[%emt 00:00:07]} 24. Nce3 {[%clk 00:00:45]} {[%emt 00:00:04]} Bb5 {[%clk
00:01:23]} {[%emt 00:00:10]} 25. Bc4 {[%clk 00:00:41]} {[%emt 00:00:06]} Bd7
{[%clk 00:01:09]} {[%emt 00:00:17]} 26. Bb3 {[%clk 00:00:35]} {[%emt 00:00:08]}
hxg3 {[%clk 00:01:07]} {[%emt 00:00:04]} 27. fxg3 {[%clk 00:00:35]} {[%emt
00:00:02]} Rxf1+ {[%clk 00:01:07]} {[%emt 00:00:02]} 28. Nxf1 {[%clk 00:00:32]}
{[%emt 00:00:05]} Rf8 {[%clk 00:00:49]} {[%emt 00:00:19]} 29. Rf2 {[%clk
00:00:31]} {[%emt 00:00:03]} Rxf2 {[%clk 00:00:47]} {[%emt 00:00:04]} 30. Kxf2
{[%clk 00:00:32]} {[%emt 00:00:01]} Bc1 {[%clk 00:00:48]} 31. Nde3 {[%clk
00:00:20]} {[%emt 00:00:13]} Bxb2 {[%clk 00:00:48]} {[%emt 00:00:03]} 32. Nd1
{[%clk 00:00:19]} {[%emt 00:00:03]} Bc1 {[%clk 00:00:48]} {[%emt 00:00:03]} 33.
Nfe3 {[%clk 00:00:18]} {[%emt 00:00:02]} Bxe3+ {[%clk 00:00:44]} {[%emt
00:00:06]} 34. Nxe3 {[%clk 00:00:18]} {[%emt 00:00:01]} Nf8 {[%clk 00:00:38]}
{[%emt 00:00:09]} 35. Bd1 {[%clk 00:00:18]} {[%emt 00:00:01]} Kd8 {[%clk
00:00:33]} {[%emt 00:00:08]} 36. Nxg4 {[%clk 00:00:19]} {[%emt 00:00:02]} Nh7
{[%clk 00:00:32]} {[%emt 00:00:03]} 37. h4 {[%clk 00:00:18]} {[%emt 00:00:02]}
Ke7 {[%clk 00:00:32]} {[%emt 00:00:02]} 38. Ke3 {[%clk 00:00:17]} {[%emt
00:00:03]} Be6 {[%clk 00:00:33]} {[%emt 00:00:01]} 39. a3 {[%clk 00:00:17]}
{[%emt 00:00:02]} b5 {[%clk 00:00:27]} {[%emt 00:00:07]} 40. Be2 {[%clk
00:00:14]} {[%emt 00:00:05]} c5 {[%clk 00:00:28]} {[%emt 00:00:01]} 41. Nf2
{[%clk 00:00:15]} {[%emt 00:00:02]} Nf6 {[%clk 00:00:28]} {[%emt 00:00:02]} 42.
g4 {[%clk 00:00:14]} {[%emt 00:00:02]} Bc8 {[%clk 00:00:22]} {[%emt 00:00:09]}
43. g5 {[%clk 00:00:15]} Ne8 {[%clk 00:00:19]} {[%emt 00:00:04]} 44. Bg4 {[%clk
00:00:10]} {[%emt 00:00:06]} Bxg4 {[%clk 00:00:10]} {[%emt 00:00:13]} 45. Nxg4
{[%clk 00:00:11]} a5 {[%clk 00:00:11]} {[%emt 00:00:01]} 46. Kd3 {[%clk
00:00:10]} {[%emt 00:00:02]} Ng7 {[%clk 00:00:11]} {[%emt 00:00:02]} 47. Ne3
{[%clk 00:00:09]} {[%emt 00:00:03]} Nh5 {[%clk 00:00:12]} {[%emt 00:00:02]} 48.
Nf5+ {[%clk 00:00:09]} {[%emt 00:00:01]} Ke6 {[%clk 00:00:13]} 49. g6 {[%clk
00:00:10]} {[%emt 00:00:01]} Nf4+ {[%clk 00:00:11]} {[%emt 00:00:04]} 50. Ke3
{[%clk 00:00:09]} {[%emt 00:00:03]} Nxg6 {[%clk 00:00:12]} {[%emt 00:00:02]} 51.
h5 {[%clk 00:00:09]} {[%emt 00:00:01]} Nf8 {[%clk 00:00:11]} {[%emt 00:00:03]}
52. h6 {[%clk 00:00:09]} {[%emt 00:00:02]} b4 {[%clk 00:00:10]} {[%emt
00:00:04]} 53. axb4 {[%clk 00:00:10]} {[%emt 00:00:01]} axb4 {[%clk 00:00:11]}
54. cxb4 {[%clk 00:00:11]} {[%emt 00:00:01]} cxb4 {[%clk 00:00:12]} {[%emt
00:00:01]} 55. Kd3 {[%clk 00:00:12]} Kf6 {[%clk 00:00:09]} {[%emt 00:00:05]} 56.
Nxd6 {[%clk 00:00:12]} {[%emt 00:00:02]} Kg6 {[%clk 00:00:09]} {[%emt
00:00:03]} 57. Nf5 {[%clk 00:00:13]} Ne6 {[%clk 00:00:08]} {[%emt 00:00:03]} 58.
Kc4 {[%clk 00:00:13]} b3 {[%clk 00:00:09]} {[%emt 00:00:01]} 59. Kxb3 {[%clk
00:00:14]} {[%emt 00:00:02]} Nc5+ {[%clk 00:00:10]} 60. Kc4 {[%clk 00:00:15]}
{[%emt 00:00:01]} Nxe4 {[%clk 00:00:12]} {[%emt 00:00:01]} 61. Ne3 {[%clk
00:00:13]} {[%emt 00:00:03]} Kxh6 {[%clk 00:00:12]} {[%emt 00:00:02]} 62. Kd5
{[%clk 00:00:15]} Nf6+ {[%clk 00:00:13]} {[%emt 00:00:01]} 63. Kxe5 {[%clk
00:00:15]} {[%emt 00:00:02]} Ng4+ {[%clk 00:00:14]} {[%emt 00:00:01]} 64. Nxg4+
{[%clk 00:00:14]} {[%emt 00:00:02]} 1/2-1/2

[Event "SM-blixten 2025"]
[Site "Uppsala, Sweden"]
[Date "2025.07.03"]
[Round "2.2"]
[White "Svensson, Hakan"]
[Black "Seo, Jung Min"]
[Result "0-1"]
[TimeControl "3 min + 2 sec increment starting from move 1"]
[BlackTitle "IM"]
[WhiteElo "2004"]
[BlackElo "2468"]

1. d4 {[%clk 00:03:03]} {[%emt 00:10:52]} Nf6 {[%clk 00:03:03]} {[%emt
00:00:02]} 2. Nf3 {[%clk 00:03:04]} {[%emt 00:00:01]} b6 {[%clk 00:03:03]}
{[%emt 00:00:02]} 3. Bg5 {[%clk 00:03:01]} {[%emt 00:00:04]} Ne4 {[%clk
00:03:03]} {[%emt 00:00:02]} 4. Bf4 {[%clk 00:03:01]} {[%emt 00:00:02]} Bb7
{[%clk 00:03:05]} {[%emt 00:00:01]} 5. e3 {[%clk 00:03:02]} d6 {[%clk
00:03:03]} {[%emt 00:00:04]} 6. Nbd2 {[%clk 00:03:01]} {[%emt 00:00:03]} Nxd2
{[%clk 00:03:01]} {[%emt 00:00:04]} 7. Qxd2 {[%clk 00:03:01]} {[%emt 00:00:02]}
g6 {[%clk 00:03:00]} {[%emt 00:00:03]} 8. Bd3 {[%clk 00:02:50]} {[%emt
00:00:12]} Bg7 {[%clk 00:03:01]} {[%emt 00:00:02]} 9. h4 {[%clk 00:02:41]}
{[%emt 00:00:11]} h6 {[%clk 00:02:59]} {[%emt 00:00:04]} 10. O-O-O {[%clk
00:02:34]} {[%emt 00:00:09]} Nd7 {[%clk 00:02:58]} {[%emt 00:00:03]} 11. e4
{[%clk 00:02:24]} {[%emt 00:00:11]} e5 {[%clk 00:02:53]} {[%emt 00:00:07]} 12.
Be3 {[%clk 00:02:22]} {[%emt 00:00:04]} Qe7 {[%clk 00:02:48]} {[%emt 00:00:07]}
13. dxe5 {[%clk 00:02:19]} {[%emt 00:00:06]} dxe5 {[%clk 00:02:45]} {[%emt
00:00:05]} 14. Bb5 {[%clk 00:01:59]} {[%emt 00:00:23]} O-O-O {[%clk 00:02:39]}
{[%emt 00:00:07]} 15. Bxd7+ {[%clk 00:01:55]} {[%emt 00:00:06]} Rxd7 {[%clk
00:02:38]} {[%emt 00:00:03]} 16. Qxd7+ {[%clk 00:01:42]} {[%emt 00:00:15]} Qxd7
{[%clk 00:02:39]} {[%emt 00:00:01]} 17. Rxd7 {[%clk 00:01:43]} Kxd7 {[%clk
00:02:39]} {[%emt 00:00:01]} 18. Nd2 {[%clk 00:01:44]} {[%emt 00:00:02]} f5
{[%clk 00:02:36]} {[%emt 00:00:04]} 19. f3 {[%clk 00:01:45]} {[%emt 00:00:02]}
Bf6 {[%clk 00:02:30]} {[%emt 00:00:08]} 20. h5 {[%emt 00:00:04]} f4 {[%clk
00:02:28]} {[%emt 00:00:03]} 21. Bf2 {[%clk 00:01:41]} {[%emt 00:00:05]} g5
{[%clk 00:02:29]} 22. Nc4 {[%clk 00:01:21]} {[%emt 00:00:21]} Ke6 {[%clk
00:02:26]} {[%emt 00:00:06]} 23. Rd1 {[%clk 00:01:20]} {[%emt 00:00:03]} g4
{[%clk 00:02:20]} {[%emt 00:00:07]} 24. a4 {[%clk 00:01:07]} {[%emt 00:00:16]}
Rg8 {[%clk 00:01:57]} {[%emt 00:00:24]} 25. Na3 {[%clk 00:00:38]} {[%emt
00:00:32]} gxf3 {[%clk 00:01:42]} {[%emt 00:00:18]} 26. gxf3 {[%clk 00:00:37]}
{[%emt 00:00:02]} Rg2 {[%clk 00:01:42]} 27. Bg1 {[%clk 00:00:30]} {[%emt
00:00:10]} a6 {[%clk 00:01:20]} {[%emt 00:00:25]} 28. a5 {[%clk 00:00:31]} b5
{[%clk 00:01:15]} {[%emt 00:00:07]} 29. c4 {[%clk 00:00:32]} {[%emt 00:00:02]}
bxc4 {[%clk 00:01:07]} {[%emt 00:00:09]} 30. Nxc4 {[%clk 00:00:29]} {[%emt
00:00:05]} Rg3 {[%clk 00:01:06]} {[%emt 00:00:02]} 31. Nd2 {[%clk 00:00:30]}
{[%emt 00:00:02]} Bc6 {[%clk 00:00:54]} {[%emt 00:00:14]} 32. Kb1 {[%clk
00:00:26]} {[%emt 00:00:05]} Ba4 {[%clk 00:00:35]} {[%emt 00:00:21]} 33. Rc1
{[%clk 00:00:26]} {[%emt 00:00:04]} c6 {[%clk 00:00:35]} {[%emt 00:00:02]} 34.
b3 {[%clk 00:00:08]} {[%emt 00:00:19]} Bb5 {[%clk 00:00:36]} {[%emt 00:00:01]}
35. Bf2 {[%clk 00:00:05]} {[%emt 00:00:05]} Rh3 {[%clk 00:00:34]} {[%emt
00:00:04]} 36. Rc3 {[%clk 00:00:04]} {[%emt 00:00:03]} Rxh5 {[%clk 00:00:32]}
{[%emt 00:00:03]} 37. Nc4 {[%clk 00:00:05]} {[%emt 00:00:01]} Rh1+ {[%clk
00:00:30]} {[%emt 00:00:03]} 38. Kb2 {[%clk 00:00:05]} {[%emt 00:00:04]} Rh2
{[%clk 00:00:28]} {[%emt 00:00:04]} 39. Rc2 {[%clk 00:00:06]} {[%emt 00:00:01]}
Kf7 {[%clk 00:00:09]} {[%emt 00:00:21]} 40. Na3 {[%clk 00:00:07]} Be7 {[%clk
00:00:08]} {[%emt 00:00:03]} 41. Nxb5 cxb5 {[%clk 00:00:09]} 42. Rc6 {[%clk
00:00:09]} Rxf2+ {[%clk 00:00:09]} {[%emt 00:00:02]} 43. Kc3 {[%clk 00:00:10]}
Rxf3+ {[%clk 00:00:10]} {[%emt 00:00:02]} 44. Kb2 {[%clk 00:00:11]} {[%emt
00:00:01]} Rf2+ {[%clk 00:00:09]} {[%emt 00:00:02]} 45. Kc3 {[%clk 00:00:12]}
{[%emt 00:00:01]} b4+ {[%clk 00:00:11]} {[%emt 00:00:02]} 46. Kc4 {[%clk
00:00:13]} Rc2+ {[%clk 00:00:11]} {[%emt 00:00:01]} 47. Kd5 {[%clk 00:00:15]}
Rxc6 {[%clk 00:00:12]} {[%emt 00:00:01]} 48. Kxc6 {[%clk 00:00:16]} {[%emt
00:00:01]} Bd8 {[%clk 00:00:12]} {[%emt 00:00:01]} 49. Kb7 {[%emt 00:00:03]}
Bxa5 {[%clk 00:00:12]} 50. Kxa6 {[%emt 00:00:02]} Bd8 {[%clk 00:00:13]} 0-1

[Event "SM-blixten 2025"]
[Site "Uppsala, Sweden"]
[Date "2025.07.03"]
[Round "3.8"]
[White "Lundstrom, Mikael"]
[Black "Johnson, Daniel"]
[Result "1/2-1/2"]
[TimeControl "3 min + 2 sec increment starting from move 1"]
[WhiteElo "2119"]
[BlackElo "2175"]

1. e4 {[%emt 00:00:02]} e5 {[%clk 00:03:02]} {[%emt 00:00:01]} 2. Nf3 {[%clk
00:03:04]} Nc6 {[%clk 00:03:03]} 3. d4 {[%clk 00:03:05]} exd4 {[%clk 00:03:04]}
{[%emt 00:00:01]} 4. Nxd4 {[%clk 00:03:06]} {[%emt 00:00:01]} Nf6 {[%clk
00:03:04]} {[%emt 00:00:03]} 5. Nc3 {[%clk 00:03:07]} Bb4 {[%clk 00:03:01]}
{[%emt 00:00:05]} 6. Nxc6 {[%clk 00:03:07]} {[%emt 00:00:02]} bxc6 {[%clk
00:03:02]} {[%emt 00:00:02]} 7. Bd3 {[%clk 00:03:08]} {[%emt 00:00:01]} d6
{[%clk 00:02:56]} {[%emt 00:00:08]} 8. O-O {[%clk 00:03:07]} {[%emt 00:00:02]}
Ng4 {[%clk 00:02:57]} {[%emt 00:00:02]} 9. h3 {[%clk 00:03:02]} {[%emt
00:00:07]} Ne5 {[%clk 00:02:56]} {[%emt 00:00:02]} 10. a3 {[%clk 00:02:58]}
{[%emt 00:00:07]} Ba5 {[%clk 00:02:51]} {[%emt 00:00:07]} 11. Qe2 {[%clk
00:02:52]} {[%emt 00:00:07]} Qh4 {[%clk 00:02:44]} {[%emt 00:00:09]} 12. Be3
{[%clk 00:02:45]} {[%emt 00:00:10]} g5 {[%clk 00:02:39]} {[%emt 00:00:07]} 13.
f4 {[%clk 00:02:43]} {[%emt 00:00:03]} gxf4 {[%clk 00:02:38]} {[%emt 00:00:03]}
14. Rxf4 {[%clk 00:02:44]} {[%emt 00:00:02]} Qg3 {[%clk 00:02:30]} {[%emt
00:00:10]} 15. Raf1 {[%clk 00:02:31]} {[%emt 00:00:15]} Rg8 {[%clk 00:02:08]}
{[%emt 00:00:24]} 16. Bd4 {[%clk 00:01:33]} {[%emt 00:01:00]} Bb6 {[%emt
00:01:10]} 17. Bxb6 {[%clk 00:01:32]} {[%emt 00:00:02]} axb6 {[%clk 00:01:02]}
18. Qf2 {[%clk 00:01:21]} {[%emt 00:00:12]} Qg7 {[%clk 00:00:49]} {[%emt
00:00:15]} 19. Kh1 {[%clk 00:01:15]} {[%emt 00:00:08]} Be6 {[%clk 00:00:47]}
{[%emt 00:00:04]} 20. Ne2 {[%clk 00:01:13]} {[%emt 00:00:05]} c5 {[%clk
00:00:45]} {[%emt 00:00:05]} 21. b3 {[%clk 00:01:00]} {[%emt 00:00:14]} Rxa3
{[%clk 00:00:42]} {[%emt 00:00:05]} 22. Nc3 {[%clk 00:00:50]} {[%emt 00:00:11]}
Rxb3 {[%clk 00:00:16]} {[%emt 00:00:29]} 23. Nd5 {[%clk 00:00:31]} {[%emt
00:00:21]} Bxd5 {[%clk 00:00:08]} {[%emt 00:00:10]} 24. exd5 {[%clk 00:00:31]}
{[%emt 00:00:02]} Ra3 {[%clk 00:00:04]} {[%emt 00:00:05]} 25. Re1 {[%clk
00:00:29]} {[%emt 00:00:05]} Kd8 {[%clk 00:00:03]} {[%emt 00:00:02]} 26. Qh4+
{[%clk 00:00:30]} {[%emt 00:00:02]} Kc8 {[%clk 00:00:04]} {[%emt 00:00:01]} 27.
g4 {[%clk 00:00:30]} {[%emt 00:00:02]} Kb7 {[%clk 00:00:05]} {[%emt 00:00:02]}
28. Rb1 {[%clk 00:00:30]} {[%emt 00:00:01]} Rga8 {[%clk 00:00:05]} {[%emt
00:00:01]} 29. Qe7 {[%clk 00:00:30]} {[%emt 00:00:02]} Nxd3 {[%clk 00:00:04]}
{[%emt 00:00:04]} 30. Rxf7 {[%clk 00:00:27]} {[%emt 00:00:05]} Qxf7 {[%clk
00:00:03]} {[%emt 00:00:03]} 31. Qxf7 {[%clk 00:00:27]} {[%emt 00:00:01]} Nb4
{[%clk 00:00:04]} {[%emt 00:00:02]} 32. Qxh7 {[%clk 00:00:27]} {[%emt
00:00:02]} Rc3 {[%clk 00:00:03]} {[%emt 00:00:03]} 33. Rf1 {[%clk 00:00:24]}
{[%emt 00:00:05]} Rxc2 {[%clk 00:00:03]} {[%emt 00:00:02]} 34. g5 {[%clk
00:00:25]} Raa2 {[%clk 00:00:04]} {[%emt 00:00:01]} 35. Qe4 {[%clk 00:00:22]}
{[%emt 00:00:04]} Re2 {[%clk 00:00:05]} {[%emt 00:00:02]} 36. Qf4 {[%clk
00:00:21]} {[%emt 00:00:03]} Nd3 {[%clk 00:00:06]} {[%emt 00:00:01]} 37. Qg3
{[%clk 00:00:21]} {[%emt 00:00:02]} Nf2+ {[%clk 00:00:04]} {[%emt 00:00:04]} 38.
Rxf2 {[%clk 00:00:19]} {[%emt 00:00:04]} Rxf2 {[%clk 00:00:05]} 39. Kg1 {[%clk
00:00:16]} {[%emt 00:00:04]} Rfb2 {[%clk 00:00:06]} {[%emt 00:00:01]} 40. Qe1
{[%clk 00:00:12]} {[%emt 00:00:07]} Rg2+ {[%clk 00:00:06]} {[%emt 00:00:01]} 41.
Kh1 {[%clk 00:00:13]} {[%emt 00:00:01]} Rxg5 {[%clk 00:00:06]} {[%emt
00:00:02]} 42. h4 {[%clk 00:00:14]} Rgg2 {[%clk 00:00:07]} {[%emt 00:00:01]} 43.
h5 {[%clk 00:00:14]} {[%emt 00:00:02]} c4 {[%clk 00:00:06]} {[%emt 00:00:04]}
44. h6 {[%clk 00:00:15]} Rh2+ {[%clk 00:00:07]} 45. Kg1 {[%clk 00:00:15]}
{[%emt 00:00:02]} Rxh6 {[%clk 00:00:07]} 46. Qe8 {[%clk 00:00:15]} {[%emt
00:00:03]} Rhh2 {[%clk 00:00:04]} {[%emt 00:00:05]} 47. Qc6+ {[%clk 00:00:15]}
{[%emt 00:00:01]} Kb8 {[%clk 00:00:05]} {[%emt 00:00:02]} 48. Qe8+ {[%clk
00:00:16]} {[%emt 00:00:01]} Ka7 {[%clk 00:00:06]} 49. Qc6 {[%clk 00:00:15]}
{[%emt 00:00:02]} Rhg2+ {[%clk 00:00:06]} {[%emt 00:00:03]} 50. Kh1 {[%clk
00:00:15]} {[%emt 00:00:01]} Rg7 {[%clk 00:00:05]} {[%emt 00:00:03]} 51. Qxc4
{[%clk 00:00:16]} {[%emt 00:00:02]} Rag2 {[%clk 00:00:04]} {[%emt 00:00:03]} 52.
Qa6+ {[%clk 00:00:16]} {[%emt 00:00:02]} Kb8 {[%clk 00:00:04]} {[%emt
00:00:02]} 53. Qb7+ {[%clk 00:00:17]} Kxb7 {[%clk 00:00:05]} 1/2-1/2

[Event "SM-blixten 2025"]
[Site "Uppsala, Sweden"]
[Date "2025.07.03"]
[Round "5.4"]
[White "Religa, Marek"]
[Black "Ask, Josef"]
[Result "1-0"]
[TimeControl "3 min + 2 sec increment starting from move 1"]
[BlackTitle "FM"]
[WhiteElo "2227"]
[BlackElo "2130"]

1. e4 {[%clk 00:03:03]} {[%emt 00:10:21]} Nc6 {[%clk 00:03:04]} {[%emt
00:00:01]} 2. Nf3 {[%clk 00:03:04]} {[%emt 00:00:01]} g6 {[%clk 00:03:05]} 3.
d4 {[%clk 00:03:03]} {[%emt 00:00:04]} Bg7 {[%clk 00:03:06]} 4. d5 {[%clk
00:03:01]} {[%emt 00:00:04]} Nb8 {[%clk 00:03:07]} 5. h4 {[%clk 00:02:54]}
{[%emt 00:00:09]} h6 {[%clk 00:03:05]} {[%emt 00:00:04]} 6. c4 {[%clk
00:02:51]} {[%emt 00:00:05]} d6 {[%clk 00:03:06]} {[%emt 00:00:01]} 7. Nc3
{[%clk 00:02:51]} {[%emt 00:00:01]} c6 {[%clk 00:03:01]} {[%emt 00:00:07]} 8.
Be3 {[%clk 00:02:51]} {[%emt 00:00:03]} Nf6 {[%clk 00:02:58]} {[%emt 00:00:05]}
9. Bd3 {[%clk 00:02:45]} {[%emt 00:00:07]} Ng4 {[%clk 00:02:54]} {[%emt
00:00:06]} 10. Bd2 {[%clk 00:02:37]} {[%emt 00:00:11]} Qb6 {[%clk 00:02:51]}
{[%emt 00:00:05]} 11. O-O {[%clk 00:02:31]} {[%emt 00:00:07]} Na6 {[%clk
00:02:45]} {[%emt 00:00:08]} 12. Na4 {[%clk 00:02:27]} {[%emt 00:00:06]} Qc7
{[%clk 00:02:35]} {[%emt 00:00:12]} 13. Rb1 {[%clk 00:02:25]} {[%emt 00:00:05]}
c5 {[%clk 00:02:22]} {[%emt 00:00:15]} 14. a3 {[%clk 00:02:19]} {[%emt
00:00:08]} O-O {[%clk 00:02:21]} {[%emt 00:00:03]} 15. b4 {[%clk 00:02:15]}
{[%emt 00:00:06]} b6 {[%clk 00:02:18]} {[%emt 00:00:04]} 16. Be2 {[%clk
00:01:55]} {[%emt 00:00:23]} h5 {[%clk 00:02:06]} {[%emt 00:00:14]} 17. Ng5
{[%clk 00:01:50]} {[%emt 00:00:06]} Bd4 {[%clk 00:02:02]} {[%emt 00:00:06]} 18.
Bc3 {[%clk 00:01:27]} {[%emt 00:00:26]} Bxc3 {[%clk 00:01:52]} {[%emt
00:00:12]} 19. Nxc3 {[%clk 00:01:27]} {[%emt 00:00:01]} cxb4 20. axb4 {[%clk
00:01:28]} Nb8 {[%clk 00:01:27]} {[%emt 00:00:15]} 21. Nb5 {[%clk 00:01:22]}
{[%emt 00:00:10]} Qb7 {[%clk 00:01:24]} {[%emt 00:00:05]} 22. Nd4 {[%clk
00:01:21]} {[%emt 00:00:02]} Ne5 {[%clk 00:01:16]} {[%emt 00:00:10]} 23. f4
{[%clk 00:01:16]} {[%emt 00:00:07]} Ng4 {[%clk 00:01:18]} 24. Qd2 {[%clk
00:01:11]} {[%emt 00:00:08]} Qd7 {[%clk 00:01:13]} {[%emt 00:00:07]} 25. f5
{[%clk 00:01:00]} {[%emt 00:00:13]} Qc7 {[%clk 00:00:52]} {[%emt 00:00:22]} 26.
Bxg4 {[%clk 00:00:55]} {[%emt 00:00:07]} hxg4 {[%clk 00:00:54]} 27. fxg6 {[%clk
00:00:55]} {[%emt 00:00:03]} fxg6 {[%clk 00:00:34]} {[%emt 00:00:21]} 28. Rxf8+
Kxf8 {[%clk 00:00:35]} 29. Nge6+ {[%clk 00:00:56]} 1-0

[Event "SM-blixten 2025"]
[Site "Uppsala, Sweden"]
[Date "2025.07.03"]
[Round "6.10"]
[White "Ral Lustig, Melvin"]
[Black "Odell Johansson, Leo"]
[Result "0-1"]
[TimeControl "3 min + 2 sec increment starting from move 1"]
[WhiteTitle "CM"]
[WhiteElo "2223"]
[BlackElo "1991"]

1. d4 {[%clk 00:03:02]} {[%emt 00:00:02]} d5 {[%clk 00:03:03]} 2. Nc3 {[%clk
00:03:02]} {[%emt 00:00:01]} Nf6 {[%clk 00:03:02]} {[%emt 00:00:04]} 3. Bf4
{[%clk 00:03:03]} {[%emt 00:00:01]} a6 {[%clk 00:03:01]} {[%emt 00:00:03]} 4.
e3 {[%clk 00:03:04]} e6 {[%clk 00:03:01]} {[%emt 00:00:02]} 5. g4 {[%clk
00:03:05]} {[%emt 00:00:02]} Be7 {[%clk 00:02:02]} {[%emt 00:01:00]} 6. g5
{[%clk 00:03:02]} {[%emt 00:00:05]} Ne4 {[%clk 00:01:53]} {[%emt 00:00:11]} 7.
Nxe4 {[%clk 00:03:01]} {[%emt 00:00:03]} dxe4 {[%clk 00:01:54]} {[%emt
00:00:01]} 8. h4 {[%clk 00:03:02]} {[%emt 00:00:02]} f5 {[%clk 00:01:49]}
{[%emt 00:00:06]} 9. gxf6 {[%clk 00:02:36]} {[%emt 00:00:28]} Bxf6 {[%clk
00:01:49]} {[%emt 00:00:02]} 10. Bg2 {[%clk 00:02:31]} {[%emt 00:00:07]} Bd7
{[%clk 00:00:32]} {[%emt 00:01:19]} 11. Bxe4 {[%clk 00:02:26]} {[%emt
00:00:07]} Bc6 {[%clk 00:00:33]} {[%emt 00:00:01]} 12. Qf3 {[%clk 00:02:00]}
{[%emt 00:00:28]} Qd7 {[%clk 00:00:34]} 13. O-O-O {[%clk 00:01:51]} {[%emt
00:00:11]} Bxe4 {[%clk 00:00:33]} {[%emt 00:00:03]} 14. Qxe4 {[%clk 00:01:52]}
{[%emt 00:00:01]} Nc6 {[%clk 00:00:34]} {[%emt 00:00:02]} 15. d5 {[%clk
00:01:49]} {[%emt 00:00:04]} O-O-O {[%clk 00:00:33]} {[%emt 00:00:04]} 16. Qxe6
{[%clk 00:01:12]} {[%emt 00:00:38]} Qxe6 {[%clk 00:00:33]} {[%emt 00:00:02]} 17.
dxe6 {[%clk 00:01:13]} {[%emt 00:00:01]} Bxb2+ {[%clk 00:00:33]} {[%emt
00:00:03]} 18. Kxb2 {[%clk 00:01:13]} {[%emt 00:00:02]} Rxd1 {[%clk 00:00:33]}
{[%emt 00:00:01]} 19. e4 {[%clk 00:00:36]} {[%emt 00:00:38]} Re8 {[%clk
00:00:30]} {[%emt 00:00:06]} 20. f3 {[%clk 00:00:35]} {[%emt 00:00:03]} Rxe6
{[%emt 00:00:01]} 21. Be3 {[%clk 00:00:36]} Rg6 {[%clk 00:00:29]} {[%emt
00:00:03]} 22. Rh2 {[%clk 00:00:19]} {[%emt 00:00:19]} Rdxg1 {[%clk 00:00:27]}
{[%emt 00:00:05]} 23. Bxg1 {[%clk 00:00:20]} {[%emt 00:00:01]} Rxg1 {[%clk
00:00:28]} 24. Rd2 {[%clk 00:00:15]} {[%emt 00:00:07]} Rf1 {[%clk 00:00:27]}
{[%emt 00:00:03]} 25. Rd3 {[%clk 00:00:11]} {[%emt 00:00:07]} Ne5 {[%clk
00:00:28]} {[%emt 00:00:01]} 26. Rd5 {[%emt 00:00:02]} Nxf3 {[%clk 00:00:26]}
{[%emt 00:00:03]} 27. Rf5 {[%clk 00:00:11]} {[%emt 00:00:03]} Nd2 {[%clk
00:00:24]} {[%emt 00:00:04]} 28. Rg5 {[%clk 00:00:11]} {[%emt 00:00:01]} g6
{[%clk 00:00:24]} {[%emt 00:00:02]} 29. Re5 {[%clk 00:00:10]} {[%emt 00:00:03]}
Nc4+ {[%clk 00:00:24]} {[%emt 00:00:02]} 0-1